Cogmind - Beta 12 X4 @@@ ROGUE MODE // 2022.11.30 @ 18:57:17 Player: Lunatic Blue Result: Destroyed by B-75 Beast with Magnetic Acceleration Cannon Performance ------------- Evolutions (4) 2000 Regions Visited (13) 2600 Robots Destroyed (105) 525 Value Destroyed (6913) 6913 Prototype IDs (2) 40 Alien Tech Used (0) 0 Bonus (4547) 4547 TOTAL SCORE: 16625 Bonus ------- High Alert Combat Kills 1139 Follower Combat Kills 985 Entered Garrisons 600 Used RIF Installer 2000 Friendly Fire -177 Cogmind --------- Core Integrity 0/850 Matter 111/300 Energy 84/150 System Corruption 6% Temperature Cool (10) Movement Walking (260) Ox2 Location -6/Lower Caves Parts ------- > --- POWER (1) -------- Micro Nuclear Core > --- PROPULSION (3) --- Carbon-fiber Leg > --- UTILITY (8) ------ Advanced Heat Sink Improved Weapon Cycler Advanced Shield Generator Improved System Shield Relay Coupler [Grunt] (28) Relay Coupler [Sentry] (23) Relay Coupler [Behemoth] (12) > --- WEAPON (3) ------- Slug Cannon Enhanced Gauss Cannon Hypervelocity Gauss Cannon > --- INVENTORY (5) ---- Improved Deuterium Engine Light Angular Momentum Engine Makeshift Shrapnel Gun Peak State ------------ > --- POWER ------------ Micro Nuclear Core > --- PROPULSION ------- Carbon-fiber Leg Carbon-fiber Leg Makeshift Leg > --- UTILITY ---------- Advanced Heat Sink Improved Weapon Cycler Advanced Shield Generator Improved System Shield Relay Coupler [Cutter] Relay Coupler [Grunt] Relay Coupler [Sentry] Relay Coupler [Behemoth] > --- WEAPON ----------- Slug Cannon Enhanced Gauss Cannon Hypervelocity Gauss Cannon > --- INVENTORY -------- Improved Deuterium Engine Light Angular Momentum Engine Makeshift Shrapnel Gun [Rating: 69] Favorites ----------- Power Micro Nuclear Core Engine Ion Engine Power Core Micro Nuclear Core Reactor Antimatter Reactor Propulsion Improved Carbon-fiber Leg Treads Light Treads Leg Improved Carbon-fiber Leg Wheel Wheel Utility Advanced Heat Sink Device Advanced Heat Sink Storage Medium Storage Unit Processor Improved Targeting Computer Hackware Relay Coupler [Grunt] Protection Improved Light Armor Plating Weapon Gatling Laser Energy Gun Gatling Laser Ballistic Gun High-powered Shotgun Ballistic Cannon Hypervelocity Gauss Cannon Launcher Grenade Launcher Special Melee Weapon Improved Datajack Build | -11 -10 -10 -9 -8 -8 -8 -7 -7 -6 -6 -6 -6 -6 ------- Run | Scr Mat Min Mat Mat Gar Mat Fac Gar Fac Gar Fac Low Low Slots Evolved 8 | . . . 2 2 . . 2 . 2 . . . . Power . | . . . . . . . . . . . . . . Propulsion 1 | . . . . 1 . . . . . . . . . Utility 6 | . . . 1 1 . . 2 . 2 . . . . Weapon 1 | . . . 1 . . . . . . . . . . Parts Attached 153 | 8 3 3 11 3 29 13 . 38 1 35 1 4 4 Power 16 | 2 . 1 . 1 4 2 . 3 . 3 . . . Engine 8 | 2 . 1 . 1 3 . . 1 . . . . . Core 7 | . . . . . 1 2 . 1 . 3 . . . Reactor 1 | . . . . . . . . 1 . . . . . Propulsion 30 | 2 . 1 1 1 7 6 . 6 . 5 . 1 . Treads 2 | 1 . . 1 . . . . . . . . . . Leg 25 | . . . . . 7 6 . 6 . 5 . 1 . Wheel 3 | 1 . 1 . 1 . . . . . . . . . Hover . | . . . . . . . . . . . . . . Flight . | . . . . . . . . . . . . . . Utility 37 | 1 2 . 2 1 4 1 . 10 1 12 1 . 2 Device 18 | . 1 . 1 . 2 1 . 5 . 6 . . 2 Storage 3 | 1 1 . . . . . . 1 . . . . . Processor 2 | . . . 1 . . . . 1 . . . . . Hackware 9 | . . . . 1 . . . 1 1 5 1 . . Protection 5 | . . . . . 2 . . 2 . 1 . . . Artifact . | . . . . . . . . . . . . . . Weapon 70 | 3 1 1 8 . 14 4 . 19 . 15 . 3 2 Energy Gun 44 | 2 . . 5 . 8 3 . 14 . 12 . . . Energy Cannon . | . . . . . . . . . . . . . . Ballistic Gun 16 | 1 1 . 2 . 4 1 . 4 . 3 . . . Ballistic Cannon 5 | . . . . . . . . . . . . 3 2 Launcher 3 | . . 1 1 . 1 . . . . . . . . Special Weapon . | . . . . . . . . . . . . . . Impact Weapon . | . . . . . . . . . . . . . . Slashing Weapon . | . . . . . . . . . . . . . . Piercing Weapon . | . . . . . . . . . . . . . . Special Melee Weapon 2 | . . . . . 1 . . 1 . . . . . Unidentified Prototypes 2 | . . . 1 . . 1 . . . . . . . Corrupted Parts 5 | . . . . . 4 . . . . 1 . . . System Corruption 19 | . . . . . 15 . . . . 4 . . . Parts Lost 63 | . 2 . 1 1 13 . . 10 . 31 . . 5 Power 6 | . . . . 1 3 . . . . 2 . . . Propulsion 13 | . . . . . 3 . . 3 . 5 . . 2 Utility 19 | . . . . . 1 . . 3 . 12 . . 3 Weapon 25 | . 2 . 1 . 6 . . 4 . 12 . . . Highest Loss Streak 21 | . 1 . 1 1 10 . . 3 . 21 . . 1 To Critical Strikes . | . . . . . . . . . . . . . . Average Slot Usage (%) 91 | . 89 100 97 96 91 100 84 95 86 66 80 98 88 Engine 3 | . 14 14 11 7 4 . . 1 . . . . . Core 3 | . . . . . 4 9 7 2 . 3 6 6 6 Reactor 1 | . . . . . . . . 2 6 1 . . . Treads 2 | . 14 14 11 9 2 . . . . . . . . Leg 15 | . . . . . 18 27 23 20 13 11 13 18 15 Wheel 2 | . 14 14 11 18 4 . . . . . . . . Device 11 | . 9 14 11 9 8 9 7 13 13 9 13 13 14 Storage 8 | . 14 14 11 9 9 9 7 12 6 1 . . . Processor 4 | . . . 9 9 9 9 7 5 . . . . . Hackware 10 | . . . . 6 6 . . 6 13 14 26 33 30 Protection 3 | . . . . . 3 9 7 4 13 3 6 6 . Energy Gun 14 | . 14 . 24 27 15 18 15 19 20 13 13 . . Ballistic Gun 3 | . 8 14 6 . 5 9 7 2 . 3 . . . Ballistic Cannon 3 | . . . . . . . . . . . . 18 20 Naked Turns . | . . . . . . . . . . . . . . Heaviest Build 42 | 14 20 21 25 25 31 32 32 42 37 37 19 37 39 Greatest Support 58 | 20 16 16 22 20 40 54 54 58 38 53 30 50 50 Greatest Overweight (x) 3 | 2 1 2 2 1 1 . . 1 . 3 . 1 2 Average Overweight (x) . | . . 1 1 . . . . . . . . . . Largest Inventory Capacity 10 | 8 10 10 10 10 10 10 10 10 5 5 5 5 5 Average Capacity 8 | 7 8 10 10 10 10 10 10 9 5 5 5 5 5 Most Carried 10 | 4 9 10 10 10 10 10 10 10 4 5 2 4 5 Average Carried 7 | 2 7 9 9 8 9 9 10 8 4 4 2 3 3 Final Capacity 10 | 8 10 10 10 10 10 10 10 5 5 5 5 5 5 Final Carried 10 | 4 9 9 10 9 10 10 10 5 4 2 2 4 3 Class Distribution -------------------- 22% | Scavenger-Gunner 19% | Scavenger-Tank 12% | Scavenger-Mutant 11% | Bothacker-Skirmisher 11% | Mutant 8% | Bothacker-Gunner 5% | Scavenger-Skirmisher 3% | Bothacker-Tank Dominant Class ---------------- Mutant | -10/Materials Mutant | -10/Mines Scavenger-Gunner | -9/Materials Scavenger-Gunner | -8/Materials Scavenger-Gunner | -8/Garrison Bothacker-Gunner | -8/Materials Bothacker-Gunner | -7/Factory Bothacker-Skirmisher | -7/Garrison Scavenger-Tank | -6/Factory Scavenger-Tank | -6/Garrison Scavenger-Mutant | -6/Factory Scavenger-Tank | -6/Lower Caves Scavenger-Gunner | -6/Lower Caves Resources | -11 -10 -10 -9 -8 -8 -8 -7 -7 -6 -6 -6 -6 -6 ----------- Run | Scr Mat Min Mat Mat Gar Mat Fac Gar Fac Gar Fac Low Low Matter Collected 2420 | 212 161 68 165 25 424 198 . 560 . 372 . 128 107 Remotely . | . . . . . . . . . . . . . . Salvage Created 4130 | . 361 156 257 139 898 359 . 1006 . 771 . 47 136 Parts 202 | . 14 14 22 6 49 14 . 51 . 26 . 1 5 Haulers Intercepted 1 | . 1 . . . . . . . . . . . . Recyclers Shooed 3 | . 2 1 . . . . . . . . . . . Parts Field Recycled . | . . . . . . . . . . . . . . Retrieved Matter . | . . . . . . . . . . . . . . Parts Self-Destructed 19 | . . . . . . . . . . . . 15 4 Prevented . | . . . . . . . . . . . . . . Kills | -11 -10 -10 -9 -8 -8 -8 -7 -7 -6 -6 -6 -6 -6 ------- Run | Scr Mat Min Mat Mat Gar Mat Fac Gar Fac Gar Fac Low Low Combat Hostiles Destroyed 91 | . 5 4 6 2 22 6 . 27 . 15 . 1 3 Guns 73 | . 5 . 6 1 16 6 . 25 . 14 . . . Cannons 4 | . . . . . . . . . . . . 1 3 AOE 11 | . . 4 . 1 6 . . . . . . . . Classes Destroyed 15 | . 4 4 1 2 2 . . 1 . . . . 1 Worker 1 | . . 1 . . . . . . . . . . . Builder 1 | . . 1 . . . . . . . . . . . Tunneler 3 | . . 1 1 1 . . . . . . . . . Hauler 1 | . 1 . . . . . . . . . . . . Recycler 2 | . 1 . . . . 1 . . . . . . . Operator 4 | . 1 . 2 . . 1 . . . . . . . Watcher 2 | . . . . 1 . 1 . . . . . . . Swarmer 18 | . . 2 2 . 3 . . 8 . 3 . . . Grunt 36 | . 5 2 3 . 9 3 . 6 . 8 . . . Brawler 4 | . . . . . 4 . . . . . . . . Duelist 3 | . . . . . 2 . . . . 1 . . . Sentry 16 | . . . 1 . 4 2 . 6 . 2 . . 1 Hunter 7 | . . . . 2 . 1 . 2 . . . 1 1 Programmer 6 | . . . . . . . . 5 . 1 . . . Mutant 1 | . . . . . . . . . . . . . 1 Best Kill Streak 8 | . 3 3 4 3 8 5 . 7 . 4 . 1 2 Combat Bots Only 8 | . 2 2 3 1 8 4 . 7 . 4 . 1 2 Max Kills in Single Turn 2 | . 1 2 1 2 1 1 . 2 . 2 . 1 1 Gunslinging 1 | . . . . . . . . 1 . 1 . . . Exploded 2 | . . 2 . 1 1 . . . . . . . . Melee . | . . . . . . . . . . . . . . Uniques/NPCs Destroyed . | . . . . . . . . . . . . . . Combat | -11 -10 -10 -9 -8 -8 -8 -7 -7 -6 -6 -6 -6 -6 -------- Run | Scr Mat Min Mat Mat Gar Mat Fac Gar Fac Gar Fac Low Low Damage Taken 7523 | . 292 128 203 126 1354 155 . 1656 . 2873 . 149 587 Core 1424 | . 58 36 64 . 166 15 . 212 . 770 . 33 70 Absorbed by Shields 130 | . . . . . 12 . . . . . . . 118 Core Remaining (%) 76 | 100 . 62 84 . . 67 . 69 . . . . . Volleys Fired 309 | . 39 8 18 8 61 16 . 86 . 61 . 3 9 Largest 3 | . 2 2 3 3 3 3 . 3 . 3 . 3 3 Hottest 240 | . 80 50 150 150 195 185 . 240 . 240 . 166 166 Shots Fired 709 | . 58 9 50 24 113 45 . 240 . 132 . 11 27 Gun 662 | . 58 7 50 24 106 45 . 240 . 132 . . . Cannon 38 | . . . . . . . . . . . . 11 27 Launcher 9 | . . 2 . . 7 . . . . . . . . Special . | . . . . . . . . . . . . . . Kinetic 187 | . 21 7 14 . 23 15 . 40 . 29 . 11 27 Thermal 365 | . . . 24 . 54 30 . 154 . 103 . . . Explosive 9 | . . 2 . . 7 . . . . . . . . Electromagnetic 148 | . 37 . 12 24 29 . . 46 . . . . . Robot Hit Streak 19 | . 4 5 6 7 19 10 . 13 . 12 . 1 5 Robot Miss Streak 9 | . 3 1 3 3 4 6 . 9 . 4 . 4 3 Penetration Max . | . . . . . . . . . . . . . . Secondary Targets 15 | . . . 1 . 4 . . 4 . 6 . . . Max Gunslinging Chain 1 | . . . 1 . 1 . . 1 . 1 . . . Shots Hit Robots 399 | . 35 7 26 12 71 31 . 115 . 87 . 2 13 Core Hits 246 | . 15 10 13 5 48 22 . 75 . 51 . 2 5 Critical Kills 4 | . . . . . . 1 . 1 . . . 1 1 Critical Parts Destroyed 2 | . . . . . . . . . . . . . 2 Critical Strikes 11 | . . . 1 . 1 1 . 1 . 3 . 1 3 Burn 5 | . . . 1 . 1 . . . . 3 . . . Destroy 6 | . . . . . . 1 . 1 . . . 1 3 Melee Attacks 13 | . . . . . 1 . . 12 . . . . . Impact . | . . . . . . . . . . . . . . Slashing . | . . . . . . . . . . . . . . Piercing . | . . . . . . . . . . . . . . Sneak Attacks 11 | . . . . . . . . 11 . . . . . Combat Hostiles . | . . . . . . . . . . . . . . Follow-up Attacks . | . . . . . . . . . . . . . . Damage Inflicted 8277 | . 465 306 450 414 1587 525 . 2374 . 1857 . 34 265 Guns 6996 | . 465 72 450 268 1102 525 . 2257 . 1857 . . . Cannons 299 | . . . . . . . . . . . . 34 265 Explosions 982 | . . 234 . 146 485 . . 117 . . . . . Melee . | . . . . . . . . . . . . . . Ramming . | . . . . . . . . . . . . . . Kinetic 1574 | . 142 72 147 . 245 174 . 263 . 232 . 34 265 Thermal 4841 | . . . 229 146 614 351 . 1876 . 1625 . . . Explosive 760 | . . 234 . . 409 . . 117 . . . . . Electromagnetic 1102 | . 323 . 74 268 319 . . 118 . . . . . Impact . | . . . . . . . . . . . . . . Slashing . | . . . . . . . . . . . . . . Piercing . | . . . . . . . . . . . . . . Highest Corruption 15 | . . . . . 15 15 . 2 . 6 6 6 6 Average Corruption 7 | . . . . . 14 15 . 2 . 5 6 6 6 Corruption Purged . | . . . . . . . . . . . . . . Corruption Blocked . | . . . . . . . . . . . . . . Effects 100 | . . . . . 22 29 . 10 . 10 1 19 9 Message Errors 28 | . . . . . 4 10 . 2 . 2 1 6 3 Matter Fused 22 | . . . . . 4 4 . 1 . 6 . 5 2 Heat Flow Errors 9 | . . . . . 2 3 . 3 . . . . 1 Energy Discharges 17 | . . . . . 4 4 . 4 . . . 4 1 Data Loss (minor) 9 | . . . . . 4 2 . . . . . 1 2 Data Loss (major) 3 | . . . . . . 1 . . . 2 . . . Misfires 4 | . . . . . 1 1 . . . . . 2 . Alerts 2 | . . . . . 1 . . . . . . 1 . Weapon Failures 6 | . . . . . 2 4 . . . . . . . Overload Shots . | . . . . . . . . . . . . . . Overflow Damage 19 | . . . . 5 3 . . 11 . . . . . Projectiles . | . . . . . . . . . . . . . . Explosions 19 | . . . . 5 3 . . 11 . . . . . Melee . | . . . . . . . . . . . . . . Knockbacks . | . . . . . . . . . . . . . . Impact . | . . . . . . . . . . . . . . Kinetic . | . . . . . . . . . . . . . . Secondary . | . . . . . . . . . . . . . . Self-Inflicted Damage 461 | . . 37 . 35 196 . . 193 . . . . . Shots 11 | . . 1 . 1 7 . . 2 . . . . . Rammed . | . . . . . . . . . . . . . . Targets Rammed . | . . . . . . . . . . . . . . Kicked . | . . . . . . . . . . . . . . Crushed . | . . . . . . . . . . . . . . Highest Temperature 378 | . 162 22 78 90 378 305 . 277 . 166 . . 155 Average Temperature 68 | . 66 19 27 39 83 96 . 63 . 55 . . 84 Received Heat Transfer 2237 | . 159 42 66 . 549 54 . 231 . 936 . 12 188 Siege Activations . | . . . . . . . . . . . . . . Robots Corrupted 1 | . . . . . . . . 1 . . . . . Combat Hostiles 1 | . . . . . . . . 1 . . . . . Parts Fried 5 | . 3 . . 2 . . . . . . . . . Impact Corruptions . | . . . . . . . . . . . . . . Robots Melted 2 | . . . . . . . . 1 . 1 . . . Combat Hostiles 2 | . . . . . . . . 1 . 1 . . . Parts Melted 27 | . . . 1 . 5 1 . 11 . 9 . . . Heat Transferred 10595 | . . . 666 100 1382 800 . 3955 . 3692 . . . Parts Sabotaged . | . . . . . . . . . . . . . . Parts Stolen . | . . . . . . . . . . . . . . Parts Stripped . | . . . . . . . . . . . . . . Power Chain Reactions 4 | . . . . 2 2 . . . . . . . . Missiles Intercepted . | . . . . . . . . . . . . . . Alert | -11 -10 -10 -9 -8 -8 -8 -7 -7 -6 -6 -6 -6 -6 ------- Run | Scr Mat Min Mat Mat Gar Mat Fac Gar Fac Gar Fac Low Low Peak Influence 1849 | . 186 297 488 206 755 582 206 1849 970 1001 483 . . Initial 970 | . . 72 115 206 106 367 206 144 970 679 483 . . Average 689 | . 97 201 325 145 404 408 206 1126 970 892 483 . . Maximum Alert Level 5 | . . 1 2 1 3 2 1 5 3 3 2 . . Low Security (%) 16 | 100 100 18 23 72 21 . . 2 . . . . . Level 1 20 | . . 81 53 27 30 49 100 7 . . . . . Level 2 17 | . . . 22 . 38 50 . 7 . 6 100 . . Level 3 28 | . . . . . 9 . . 34 100 93 . . . Level 4 10 | . . . . . . . . 30 . . . . . Level 5 6 | . . . . . . . . 17 . . . . . High Security . | . . . . . . . . . . . . . . Max Security . | . . . . . . . . . . . . . . Squads Dispatched 4 | . 1 . 2 . . 1 . . . . . . . Investigation . | . . . . . . . . . . . . . . Extermination . | . . . . . . . . . . . . . . Reinforcement 4 | . 1 . 2 . . 1 . . . . . . . Assault . | . . . . . . . . . . . . . . Garrison . | . . . . . . . . . . . . . . Intercept . | . . . . . . . . . . . . . . Searches Triggered . | . . . . . . . . . . . . . . Construction Impeded . | . . . . . . . . . . . . . . Haulers Reinforced . | . . . . . . . . . . . . . . Active Scanning Responses . | . . . . . . . . . . . . . . Cargo Convoy Interrupts . | . . . . . . . . . . . . . . Stealth | -11 -10 -10 -9 -8 -8 -8 -7 -7 -6 -6 -6 -6 -6 --------- Run | Scr Mat Min Mat Mat Gar Mat Fac Gar Fac Gar Fac Low Low Distress Signals . | . . . . . . . . . . . . . . Communications Jammed . | . . . . . . . . . . . . . . Distress Signals . | . . . . . . . . . . . . . . Times Spotted 158 | . 8 10 16 6 25 14 . 39 . 33 . 2 5 Peak Tracking Total 8 | . 2 3 5 3 4 3 . 7 . 8 . 1 3 Tactical Retreats 7 | . 1 . . . 2 1 . . . 2 . . 1 Traps | -11 -10 -10 -9 -8 -8 -8 -7 -7 -6 -6 -6 -6 -6 ------- Run | Scr Mat Min Mat Mat Gar Mat Fac Gar Fac Gar Fac Low Low Traps Triggered 11 | . 1 . . . 2 . . 6 . 2 . . . Indirectly . | . . . . . . . . . . . . . . Trap Hack Attempts 13 | . . . . . . . . 13 . . . . . Triggered . | . . . . . . . . . . . . . . Disarmed . | . . . . . . . . . . . . . . Reprogrammed 2 | . . . . . . . . 2 . . . . . Reused . | . . . . . . . . . . . . . . Traps Extracted . | . . . . . . . . . . . . . . Installed . | . . . . . . . . . . . . . . Triggered . | . . . . . . . . . . . . . . Machines | -11 -10 -10 -9 -8 -8 -8 -7 -7 -6 -6 -6 -6 -6 ---------- Run | Scr Mat Min Mat Mat Gar Mat Fac Gar Fac Gar Fac Low Low Machines Disabled 23 | . 4 . . . 3 1 . 12 . 2 . . 1 Max in Single Turn 2 | . 1 . . . 1 1 . 2 . 1 . . 1 Garrison Relay 12 | . . . . . 3 . . 8 . 1 . . . Phase Generator 1 | . . . . . . . . 1 . . . . . Machines Sabotaged . | . . . . . . . . . . . . . . Overloaded Fab Kills . | . . . . . . . . . . . . . . Hacking | -11 -10 -10 -9 -8 -8 -8 -7 -7 -6 -6 -6 -6 -6 --------- Run | Scr Mat Min Mat Mat Gar Mat Fac Gar Fac Gar Fac Low Low Machines Accessed 18 | . 4 . 1 2 1 2 1 4 1 1 . 1 . Terminals 14 | . 4 . 1 1 1 2 . 4 . 1 . . . Fabricators . | . . . . . . . . . . . . . . Repair Stations . | . . . . . . . . . . . . . . Recycling Units . | . . . . . . . . . . . . . . Scanalyzers . | . . . . . . . . . . . . . . Garrison Access 3 | . . . . 1 . . 1 . 1 . . . . Total Hacks 52 | . 22 . 6 6 2 5 2 5 2 1 . 1 . Successful 34 | . 16 . 4 3 . 2 2 3 2 1 . 1 . Failed 18 | . 6 . 2 3 2 3 . 2 . . . . . Catastrophic 2 | . 1 . . . . 1 . . . . . . . Database Lockouts . | . . . . . . . . . . . . . . Manual 20 | . 10 . 6 . . 4 . . . . . . . Terminals 43 | . 22 . 6 2 2 5 . 5 . 1 . . . Fabricators . | . . . . . . . . . . . . . . Repair Stations . | . . . . . . . . . . . . . . Recycling Units . | . . . . . . . . . . . . . . Scanalyzers . | . . . . . . . . . . . . . . Garrison Access 8 | . . . . 4 . . 2 . 2 . . . . Terminal Hacks 20 | . 12 . 1 1 . 1 . 3 . 1 . 1 . Record 3 | . 3 . . . . . . . . . . . . Open Door 2 | . . . . . . . . 1 . . . 1 . Branch Access Points 1 | . 1 . . . . . . . . . . . . Emergency Access Points 4 | . 2 . . . . . . 1 . 1 . . . Alert Level 2 | . 2 . . . . . . . . . . . . Unreport Threat 2 | . 1 . . 1 . . . . . . . . . Locate Traps 1 | . 1 . . . . . . . . . . . . Registered Components 1 | . 1 . . . . . . . . . . . . Zone Layout 3 | . 1 . 1 . . 1 . . . . . . . Security Stations 1 | . . . . . . . . 1 . . . . . Fabricator Hacks . | . . . . . . . . . . . . . . Repair Station Hacks . | . . . . . . . . . . . . . . Recycling Unit Hacks . | . . . . . . . . . . . . . . Scanalyzer . | . . . . . . . . . . . . . . Garrison Access Hacks 6 | . . . . 2 . . 2 . 2 . . . . Unlock Access 3 | . . . . 1 . . 1 . 1 . . . . Coupler Status 3 | . . . . 1 . . 1 . 1 . . . . Unauthorized Hacks 8 | . 4 . 3 . . 1 . . . . . . . Terminals 8 | . 4 . 3 . . 1 . . . . . . . Track 1 | . . . 1 . . . . . . . . . . Botnet 5 | . 3 . 1 . . 1 . . . . . . . Operators 2 | . 1 . 1 . . . . . . . . . . Fabricators . | . . . . . . . . . . . . . . Repair Stations . | . . . . . . . . . . . . . . Recycling Units . | . . . . . . . . . . . . . . Scanalyzers . | . . . . . . . . . . . . . . Garrison Access . | . . . . . . . . . . . . . . Data Cores Recovered . | . . . . . . . . . . . . . . Used . | . . . . . . . . . . . . . . Hacking Detections 14 | . 4 . 1 2 1 2 1 2 1 . . . . Full Trace Events . | . . . . . . . . . . . . . . Feedback Events . | . . . . . . . . . . . . . . Feedback Blocked . | . . . . . . . . . . . . . . Robot Schematics Acquired . | . . . . . . . . . . . . . . Robots Built . | . . . . . . . . . . . . . . Authchips . | . . . . . . . . . . . . . . Time . | . . . . . . . . . . . . . . Total Robot Build Rating . | . . . . . . . . . . . . . . Part Schematics Acquired . | . . . . . . . . . . . . . . Parts Built . | . . . . . . . . . . . . . . Authchips . | . . . . . . . . . . . . . . Time . | . . . . . . . . . . . . . . Total Part Build Rating . | . . . . . . . . . . . . . . Parts Repaired . | . . . . . . . . . . . . . . Time . | . . . . . . . . . . . . . . Parts Recycled . | . . . . . . . . . . . . . . Recycled Matter . | . . . . . . . . . . . . . . Retrieved Matter . | . . . . . . . . . . . . . . Retrieved Components . | . . . . . . . . . . . . . . Parts Scanalyzed . | . . . . . . . . . . . . . . Part Schematics Acquired . | . . . . . . . . . . . . . . Parts Damaged . | . . . . . . . . . . . . . . Bothacking | -11 -10 -10 -9 -8 -8 -8 -7 -7 -6 -6 -6 -6 -6 ------------ Run | Scr Mat Min Mat Mat Gar Mat Fac Gar Fac Gar Fac Low Low Used RIF Installer 4 | . . . . . 1 . . 1 . 2 . . . Threat Obfuscator 2 | . . . . . . . . 1 . 1 . . . Alert ID Control 1 | . . . . . . . . . . 1 . . . Robots Hacked 1 | . . . . . 1 . . . . . . . . Non-combat . | . . . . . . . . . . . . . . Combat 1 | . . . . . 1 . . . . . . . . Robot Hacks Applied 1 | . . . . . 1 . . . . . . . . parse_system 1 | . . . . . 1 . . . . . . . . Relay Couplers Released 48 | . . . . . 12 . . 33 . 3 . . . Machine Destruction 48 | . . . . . 12 . . 33 . 3 . . . Attached 7 | . . . . . . . . 1 1 5 . . . Fabnet Peak Effective % . | . . . . . . . . . . . . . . Robots Rewired 4 | . . . . . . . . 4 . . . . . Allies Hacked . | . . . . . . . . . . . . . . Hacks Repelled . | . . . . . . . . . . . . . . Allies | -11 -10 -10 -9 -8 -8 -8 -7 -7 -6 -6 -6 -6 -6 -------- Run | Scr Mat Min Mat Mat Gar Mat Fac Gar Fac Gar Fac Low Low Total Allies 10 | . . 1 . . . . . 8 . . . 1 . Largest Group 4 | . . 1 1 . . . . 4 4 4 . 1 . Highest-Rated Group 207 | . . 31 31 . . . . 207 207 207 . 140 . Highest-Rated Ally 140 | . . 31 31 . . . . 95 95 95 . 140 . Total Orders . | . . . . . . . . . . . . . . Ally Attacks 121 | . . 9 16 . . . . 51 . 40 . 5 . Total Damage 4260 | . . 125 274 . . . . 1720 . 1724 . 417 . Kills 38 | . . 3 7 . . . . 14 . 13 . 1 . Allies Corrupted . | . . . . . . . . . . . . . . Allies Melted . | . . . . . . . . . . . . . . Intel | -11 -10 -10 -9 -8 -8 -8 -7 -7 -6 -6 -6 -6 -6 ------- Run | Scr Mat Min Mat Mat Gar Mat Fac Gar Fac Gar Fac Low Low Robot Analysis Total . | . . . . . . . . . . . . . . Derelict Logs Recovered 3 | . . . . . . . . . . . . 3 . Drone Launches . | . . . . . . . . . . . . . . Drone Recoveries . | . . . . . . . . . . . . . . Exploration | -11 -10 -10 -9 -8 -8 -8 -7 -7 -6 -6 -6 -6 -6 ------------- Run | Scr Mat Min Mat Mat Gar Mat Fac Gar Fac Gar Fac Low Low Turns Passed 5840 | 73 351 219 309 149 675 541 12 1766 21 725 66 654 279 Spaces Moved 3551 | 53 225 164 149 121 338 372 10 1048 15 364 54 482 156 Core 24 | 11 . . . . . . . . . 13 . . . Treads 103 | 4 . . 59 . 40 . . . . . . . . Legs 2748 | . . . . . 260 372 10 1048 15 351 54 482 156 Wheels 676 | 38 225 164 90 121 38 . . . . . . . . Hover . | . . . . . . . . . . . . . . Flight . | . . . . . . . . . . . . . . Fastest Speed 50 | 50 100 110 110 80 95 120 120 120 120 50 120 120 126 Average Speed 127 | 110 104 114 154 94 130 120 120 127 120 133 120 131 158 Slowest Speed 260 | 160 115 115 225 95 225 120 120 190 120 200 120 190 260 Overloaded Moves . | . . . . . . . . . . . . . . Propulsion Burnouts . | . . . . . . . . . . . . . . Robots Hopped . | . . . . . . . . . . . . . . Cave-ins Triggered . | . . . . . . . . . . . . . . Exploration Rate (%) 29 | 4 45 28 23 17 38 35 1 89 1 40 2 61 25 Regions Visited 13 Branch Regions 3 Pre-discovered Areas 2 | . . 1 . . . . . . . . . 1 . Known Exits Taken 5 | . 1 . . 1 . . 1 . 1 . . 1 . Unknown Exits Taken 5 | 1 . 1 1 . . 1 . . . . 1 . . Scrap Searched 2 | . . . . . . . . . . . . 2 . Spaces Dug 15 | . . 6 . . 9 . . . . . . . . Terrain Destroyed 227 | . . 13 . 12 36 . . 143 . . . 8 15 Melee . | . . . . . . . . . . . . . . Projectile 24 | . . . . . 1 . . . . . . 8 15 AOE 203 | . . 13 . 12 35 . . 143 . . . . . Terrain Rammed . | . . . . . . . . . . . . . . Walls Destroyed . | . . . . . . . . . . . . . . Machines Disabled . | . . . . . . . . . . . . . . Actions | -11 -10 -10 -9 -8 -8 -8 -7 -7 -6 -6 -6 -6 -6 --------- Run | Scr Mat Min Mat Mat Gar Mat Fac Gar Fac Gar Fac Low Low Total 4256 | 63 284 186 195 140 469 433 10 1265 18 475 54 492 172 Wait 60 | . 9 9 . . 9 9 . 11 2 11 . . . Move 3541 | 52 224 163 148 121 337 371 10 1047 15 363 53 481 156 Hop . | . . . . . . . . . . . . . . Pick Up 54 | 3 7 1 4 5 7 6 . 16 . 2 . 2 1 Fast Attach 79 | 6 1 . 8 . 16 2 . 14 . 25 1 4 2 Attach 28 | . 1 1 2 3 4 . . 8 1 6 . . 2 Detach 3 | . . . 3 . . . . . . . . . . Swap 48 | 2 1 2 2 . 10 11 . 16 . 4 . . . Drop 81 | . 2 2 10 3 14 18 . 25 . 3 . 2 2 Fire 309 | . 39 8 18 8 61 16 . 86 . 61 . 3 9 Melee 13 | . . . . . 1 . . 12 . . . . . Ram . | . . . . . . . . . . . . . . Kick . | . . . . . . . . . . . . . . Crush . | . . . . . . . . . . . . . . Escape Stasis 27 | . . . . . 10 . . 17 . . . . . Rewire . | . . . . . . . . . . . . . . Trap 13 | . . . . . . . . 13 . . . . . Miscellaneous . | . . . . . . . . . . . . . . Route ------- -11/Scrapyard -10/Materials -10/Mines -9/Materials -8/Materials -8/Garrison -8/Materials -7/Factory -7/Garrison (discovered 3 exits: *Fac x3) -6/Factory -6/Garrison -6/Factory -6/Lower Caves -6/Lower Caves History --------- Turn | Location | Event 12 | -11/Scrapyard | Discovered new exit (range 15) 74 | -11/Scrapyard | Entered Materials 150 | -10/Materials | Discovered new exit (range 14) 287 | -10/Materials | Identified exit to Mines 303 | -10/Materials | Build established: Mutant 425 | -10/Materials | Entered Mines 428 | -10/Mines | Escorted by a lone wolf Derelict 451 | -10/Mines | Learned location of Storage (-9) 612 | -10/Mines | Discovered new exit (range 12) 644 | -10/Mines | Entered Materials 644 | -9/Materials | Accompanied by 1 ally 644 | -9/Materials | Evolved 2 slots: Utility x1, Weapon x1 882 | -9/Materials | Discovered new exit (range 17) 953 | -9/Materials | Entered another Materials area 953 | -8/Materials | Evolved 2 slots: Propulsion x1, Utility x1 974 | -8/Materials | Build established: Scavenger-Gunner 1102 | -8/Materials | Identified exit to Garrison 1102 | -8/Materials | Entered Garrison 1134 | -8/Garrison | Triggered checkpoint 1189 | -8/Garrison | Garrison Relay disabled 1281 | -8/Garrison | System corruption reached 10% 1330 | -8/Garrison | Triggered checkpoint 1441 | -8/Garrison | Triggered checkpoint 1486 | -8/Garrison | Lost 10 parts (3p3n4w) 1489 | -8/Garrison | Destroyed 8 combat bots 1534 | -8/Garrison | Triggered checkpoint 1602 | -8/Garrison | Garrison Relay disabled 1636 | -8/Garrison | Triggered checkpoint 1685 | -8/Garrison | Installed Relay Interface Framework 1718 | -8/Garrison | Garrison Relay disabled 1760 | -8/Garrison | Discovered new exit (range 14) 1777 | -8/Garrison | Entered Materials 2255 | -8/Materials | Build established: Bothacker-Gunner 2304 | -8/Materials | Discovered new exit (range 6) 2318 | -8/Materials | Entered Factory 2318 | -7/Factory | Evolved 2 slots: Utility x2 2330 | -7/Factory | Identified exit to Garrison 2330 | -7/Factory | Entered Garrison 2346 | -7/Garrison | Triggered checkpoint 2372 | -7/Garrison | Triggered checkpoint 2413 | -7/Garrison | Destroyed 7 combat bots 2459 | -7/Garrison | Garrison Relay disabled 2528 | -7/Garrison | Triggered checkpoint 2634 | -7/Garrison | Triggered checkpoint 2689 | -7/Garrison | Discovered new exit (range 8) 2722 | -7/Garrison | Triggered checkpoint 2727 | -7/Garrison | Garrison Relay disabled 2817 | -7/Garrison | Build established: Bothacker-Skirmisher 2824 | -7/Garrison | Triggered checkpoint 2848 | -7/Garrison | Triggered checkpoint 2982 | -7/Garrison | Triggered checkpoint 3001 | -7/Garrison | Learned Factory security intel 3022 | -7/Garrison | Garrison Relay disabled 3079 | -7/Garrison | Discovered new exit (range 13) 3195 | -7/Garrison | Discovered new exit (range 8) 3238 | -7/Garrison | Triggered checkpoint 3328 | -7/Garrison | Lost 3 parts (2n1w) 3345 | -7/Garrison | Garrison Relay disabled 3348 | -7/Garrison | Garrison Relay disabled 3360 | -7/Garrison | Garrison Relay disabled 3360 | -7/Garrison | Garrison Relay disabled 3430 | -7/Garrison | Garrison Relay disabled 3522 | -7/Garrison | Triggered checkpoint 3754 | -7/Garrison | Found embedded Infiltrators 3787 | -7/Garrison | Phase Generator disabled 3818 | -7/Garrison | Lost 3 parts (1u2w) 3913 | -7/Garrison | Rescued a captive Derelict 3923 | -7/Garrison | Rescued a captive Derelict 4063 | -7/Garrison | Expanded RIF knowledge: Threat Obfuscation 4096 | -7/Garrison | Entered Factory 4096 | -6/Factory | Accompanied by 4 allies 4096 | -6/Factory | Evolved 2 slots: Utility x2 4115 | -6/Factory | Identified exit to Garrison 4117 | -6/Factory | Entered Garrison 4117 | -6/Garrison | Accompanied by 4 allies 4138 | -6/Garrison | Expanded RIF knowledge: Alert ID Control 4158 | -6/Garrison | Triggered checkpoint 4190 | -6/Garrison | Garrison Relay disabled 4216 | -6/Garrison | Build established: Scavenger-Tank 4281 | -6/Garrison | Lost 3 parts (1n2u) 4284 | -6/Garrison | Triggered checkpoint 4306 | -6/Garrison | Triggered checkpoint 4320 | -6/Garrison | Triggered checkpoint 4321 | -6/Garrison | Triggered checkpoint 4372 | -6/Garrison | Core integrity fell below 50% 4433 | -6/Garrison | Core integrity fell below 20% 4472 | -6/Garrison | Lost 21 parts (2p2n8u9w) 4695 | -6/Garrison | Discovered new exit (range 10) 4749 | -6/Garrison | Expanded RIF knowledge: Threat Obfuscation 4831 | -6/Garrison | Lost 6 parts (2n1u3w) 4842 | -6/Garrison | Entered Factory 4893 | -6/Factory | Discovered new exit (range 12) 4908 | -6/Factory | Entered Lower Caves 5008 | -6/Lower Caves | Encountered a Warlord checkpoint 5244 | -6/Lower Caves | Spotted B-75 Beast 5302 | -6/Lower Caves | 1C-UTU showed up to help 5340 | -6/Lower Caves | Learned location of Zion (-6) 5403 | -6/Lower Caves | Identified exit to Lower Caves 5554 | -6/Lower Caves | Learned Factory terminal intel 5562 | -6/Lower Caves | Entered another Lower Caves area 5585 | -6/Lower Caves | Spotted B-75 Beast 5619 | -6/Lower Caves | Attacked by a delusional Derelict stockpiling parts 5718 | -6/Lower Caves | Attracted the attention of an 0b10 checkpoint 5841 | -6/Lower Caves | Destroyed by B-75 Beast with Magnetic Acceleration Cannon Last Messages --------------- 05714_ Carbon-fiber Leg destroyed. 05716_ Acquired 6 matter. 05718_ Y-54 Guardian: "INTERCEPTING UNREGISTERED DERELICT." 05718_ Slug penetrates Y-54 Guardian. 05718_ Y-54 Guardian destroyed. 05724_ Slug penetrates Wall. 05725_ HV Slug penetrates Wall. 05727_ Destroyed Targeting Computer. 05730_ System corrupted: Energy discharge (-48). 05730_ Lgt. Treads fries itself beyond repair. 05730_ H-66 Slayer suffers critical hit (Destroy). 05730_ H-66 Slayer destroyed. 05733_ Imp. Light Armor Plating fries itself beyond repair. 05747_ Gauss Rifle fries itself beyond repair. 05748_ System corrupted: Matter fused (-5). 05753_ Acquired 59 matter. 05759_ Relay Coupler [Cutter] destroyed. 05796_ Mak. Leg destroyed. 05797_ Acquired 3 matter. 05810_ System corrupted: Heat flow error (+203). Map ----- +----------------------------------------------------+ | ?????????????????????????????????????????????????? | | ?????????????????????????????????????????????????? | | ?????????????????????????????????????????????????? | | ?????????????????????????????????????????????????? | | ?????????????????????????????????????????????????? | | ?????????????????????????????????????????????????? | | ?????????????????????????????????????????????????? | | ?????????????????????????????????????????????????? | | ?????????????????????????????????????????????????? | | ?????????????????????????????????????????????????? | | ?????????????????????????????????????????????????? | | ????????????????????????????? ???????????????????? | | ???????????????????????????? #?????????????????? | | ???????????????????????????? #?????????????????? | | ???????????????????????????? #?????????????????? | | ???????????????????????????# #?????????????????? | | ??????????????????????????# ??????????????????? | | ?????????????????????????? ??????????????????? | | ?????????????????????????? ???????????????????? | | ?????????????????????????? #???????????????????? | | ?????????????????????????# #???????????????????? | | ??????????????????????#### ##??????????????????? | | ????????????????????### ##?????????????????? | | ????????????????????#; % #?????????????##### | | ????????????????????# #?????????????# | | ????????????????????# @ #?????????????# | | ????????????????????## #########???### | | ?????????????????????# #??## | | ?????????????????????# #?## | | ?????????????????????# ###### ## | | ?????????????????????# ##????# | | ?????????????????????## ##????## # "" | | ??????????????????????# ##??### ####### "# | | ?????????????????????## #??# # ????????# % | | ?????????????????????# #??# ????????# "# | | ????????????????????# # #??# #????????# ## | | ????????????????????####### ##??# #???????## #? | | ??????????????????????????# #??## #???????#" #? | | ??????????????????????##??# #??# ##??????## ## | | ??????????????????????# # ##### #####??# | | ???????????????????????# #?# """#### | | ???????????????????????## # ### | | ????????????????????????## # | | ?????????????????????????## # # #######" % | | ??????????????????????????##### ###?????## % | | ??????????????????????????????######????????# | | ????????????????????????????????????????????#####" | | ????????????????????????????????????????????????? | | ?????????????????????????????????????????????????# | | ?????????????????????????????????????????????????? | +----------------------------------------------------+ Best States ------------- Heat Dissipation 113 Energy Generation 21 Energy Capacity 525 Matter Stores 300 Matter Capacity 300 Sight Range 16 Terrain Scan Range 14 Terrain Scan Density 10 Armor Coverage 300 Weapon Cycling 20 Evasion (%) 55 Targeting Accuracy 6 Recoil Reduction 1 Offensive Hacking 10 Defensive Hacking 12 Relay Coupler Types 4 Relay Coupler Value 92 Item Schematics ----------------- None Robot Schematics ------------------ None Fabricated ------------ Nothing Alien Tech Used ----------------- None Achievements -------------- None Challenges ------------ None Game ------ Seed TargetingMasterClaymores Manual? 0 Play Time 00:46:42 Cumulative 111.3 hours Start 2022.11.30 @ 18:03:49 End 2022.11.30 @ 18:57:17 Sessions 1 Manual Loads 0 Difficulty Rogue Special Mode None Game No. 202 Rogue 202 Adventurer 0 Explorer 0 Win Type - Total 2 Types 1/0/1/0/0/0/0/0/0 Lore% 63 Gallery% 69 Achievement% 51 Wizard Run 0 Options --------- ASCII 0 Keyboard 0 Movement Mouse Keybinds 0 Fullscreen 1 Font 18/SmallcapsGlow Map View 76x50 Tactical HUD 1 Map Filters NONE Filters NONE Steam 1 RUN: 8eb68145-3af6-4266-946a-e6293a093962